[Event "XIII Mediterranean Championship 2023"]
[Site "Castell-Platja d Aro"]
[Date "2023.11.05"]
[Round "3.22"]
[White "Canigueral Salvado, Jaume"]
[Black "Guillo Longares, Cecilia"]
[Result "0-1"]
[ECO "B34"]
[WhiteElo "1853"]
[BlackElo "2065"]
[Annotator "NA"]
[PlyCount "138"]
[EventDate "2023.10.26"]
[EventType "swiss"]
[EventCountry "ESP"]
[SourceTitle "playchess.com"]
[Source "ChessBase"]
[SourceQuality "1"]
[TimeControl "5400+30"]

1. e4 {[%emt 0:00:26]} c5 {[%emt 0:00:08]} 2. Nf3 {[%emt 0:00:27]} Nc6 {[%emt 0:00:04]} 3. d4 {[%emt 0:00:28]} cxd4 {[%emt 0:00:06]} 4. Nxd4 {[%emt 0:00:07]} g6 {[%emt 0:00:03]} 5. Nc3 {[%emt 0:03:11]} Bg7 {[%emt 0:00:06]} 6. Be3 {[%emt 0:03:10]} Nf6 {[%emt 0:00:10]} 7. Be2 {[%emt 0:00:56]} O-O {[%emt 0:00:37]} 8. O-O {[%emt 1:25:45]} d5 {[%emt 1:33:16]} 9. Nxc6 {[%emt 0:00:00]} bxc6 {[%emt 0:00:30]} 10. exd5 {[%emt 0:01:00]} Nxd5 {[%emt 0:00:30]} 11. Nxd5 {[%emt 0:00:00]} cxd5 {[%emt 0:00:30]} 12. c3 {[%emt 0:01:00]} e5 {[%emt 0:00:30]} 13. Qd2 {[%emt 0:00:30]} Be6 {[%emt 0:00:30]} 14. Bc5 {[%emt 0:00:00]} Re8 {[%emt 0:00:00]} 15. Bb5 {[%emt 0:00:00]} Bd7 {[%emt 0:00:00]} 16. Bxd7 {[%emt 0:00:00]} Qxd7 {[%emt 0:01:30]} 17. Rad1 {[%emt 0:02:00]} Red8 {[%emt 0:00:30]} 18. Rfe1 {[%emt 0:00:30]} Qc7 {[%emt 0:00:00]} 19. b4 {[%emt 0:00:30]} Rac8 {[%emt 0:01:00]} 20. Qg5 {[%emt 0:00:30]} f6 {[%emt 0:00:30]} 21. Qg4 {[%emt 0:00:00]} Qf7 {[%emt 0:00:30]} 22. Qf3 {[%emt 0:01:00]} f5 {[%emt 0:00:30]} 23. Qe2 {[%emt 0:00:30]} e4 {[%emt 0:00:30]} 24. Qc2 {[%emt 0:00:30]} Be5 {[%emt 0:00:30]} 25. Bd4 {[%emt 0:00:30]} Qc7 {[%emt 0:00:00]} 26. Bxe5 {[%emt 0:00:00]} Qxe5 {[%emt 0:01:00]} 27. Rc1 {[%emt 0:01:00]} Rc4 {[%emt 0:00:00]} 28. Qa4 {[%emt 0:00:00]} Qc7 {[%emt 0:00:00]} 29. Qa6 {[%emt 0:01:00]} Rd6 {[%emt 0:00:00]} 30. Qb5 {[%emt 0:00:00]} Kf7 {[%emt 0:00:00]} 31. Rcd1 {[%emt 0:00:00]} a6 {[%emt 0:02:30]} 32. Qa4 {[%emt 0:00:00]} Rxc3 {[%emt 0:00:00]} 33. b5 {[%emt 0:02:00]} Qc5 {[%emt 0:00:00]} 34. Qa5 {[%emt 0:00:30]} axb5 {[%emt 0:01:30]} 35. Qa8 {[%emt 0:00:00]} Rc2 {[%emt 0:00:30]} 36. Rf1 {[%emt 0:01:00]} Qc8 {[%emt 0:00:00]} 37. Qa7+ {[%emt 0:00:30]} Qc7 {[%emt 0:00:00]} 38. Qd4 {[%emt 0:00:30]} Rd8 {[%emt 0:00:00]} 39. Rb1 {[%emt 0:00:30]} Qc5 {[%emt 0:02:00]} 40. Qe5 {[%emt 0:00:00]} d4 {[%emt 0:00:00]} 41. Qf4 {[%emt 0:01:00]} d3 {[%emt 0:00:00]} 42. Qh4 {[%emt 0:00:00]} Rh8 {[%emt 0:01:30]} 43. a4 {[%emt 0:00:00]} b4 {[%emt 0:00:00]} 44. a5 {[%emt 0:01:30]} Kg7 {[%emt 0:00:00]} 45. Qf4 {[%emt 0:00:30]} Ra8 {[%emt 0:00:00]} 46. g4 {[%emt 0:00:30]} Rxa5 {[%emt 0:02:00]} 47. g5 {[%emt 0:00:00]} Ra8 {[%emt 0:00:30]} 48. Rxb4 {[%emt 0:00:00]} Qc7 {[%emt 0:00:00]} 49. Qh4 {[%emt 0:00:00]} d2 {[%emt 0:00:00]} 50. Qh3 {[%emt 0:00:00]} Rc1 {[%emt 0:00:46]} 51. Rb1 {[%emt 0:00:00]} Rxb1 {[%emt 0:00:33]} 52. Rxb1 {[%emt 0:03:00]} Rd8 {[%emt 0:00:34]} 53. Rd1 {[%emt 0:00:00]} Qc2 {[%emt 0:00:30]} 54. Qf1 {[%emt 0:00:00]} Rd3 {[%emt 0:00:32]} 55. Kg2 {[%emt 0:01:30]} f4 {[%emt 0:00:31]} 56. h4 {[%emt 0:00:00]} Qc8 {[%emt 0:01:04]} 57. Kh2 {[%emt 0:00:00]} Qg4 {[%emt 0:00:30]} 58. Rxd2 {[%emt 0:01:30]} Rxd2 {[%emt 0:00:00]} 59. Qa1+ {[%emt 0:00:30]} Kg8 {[%emt 0:00:14]} 60. Qa8+ {[%emt 0:00:30]} Kf7 {[%emt 0:00:12]} 61. Qb7+ {[%emt 0:00:00]} Qd7 {[%emt 0:00:22]} 62. Qb3+ {[%emt 0:00:00]} Qe6 {[%emt 0:01:42]} 63. Qb7+ {[%emt 0:00:00]} Rd7 {[%emt 0:00:00]} 64. Qb2 {[%emt 0:00:00]} f3 {[%emt 0:00:00]} 65. Qh8 {[%emt 0:00:00]} Qd6+ {[%emt 0:00:14]} 66. Kh3 {[%emt 0:00:00]} Qf8 {[%emt 0:00:32]} 67. Qf6+ {[%emt 0:00:09]} Kg8 {[%emt 0:00:06]} 68. Qe6+ {[%emt 0:03:51]} Qf7 {[%emt 0:00:07]} 69. Qxe4 {[%emt 0:00:00]} Qf5+ {[%emt 0:00:10]} 0-1

[Event "XIII Mediterranean Championship 2023"]
[Site "Castell-Platja d Aro"]
[Date "2023.11.05"]
[Round "3.23"]
[White "Ballo Serrano, Jan"]
[Black "Galvan Cipriani, Viviana"]
[Result "0-1"]
[ECO "B23"]
[WhiteElo "1512"]
[BlackElo "2077"]
[Annotator "NA"]
[PlyCount "56"]
[EventDate "2023.10.26"]
[EventType "swiss"]
[EventCountry "ESP"]
[SourceTitle "playchess.com"]
[Source "ChessBase"]
[SourceQuality "1"]
[TimeControl "5400+30"]

1. e4 {[%emt 0:00:55]} c5 {[%emt 0:00:09]} 2. Nc3 {[%emt 0:00:11]} a6 {[%emt 0:05:08]} 3. f4 {[%emt 0:00:58]} e6 {[%emt 0:01:46]} 4. d4 {[%emt 0:01:12]} cxd4 {[%emt 0:00:12]} 5. Qxd4 {[%emt 0:00:24]} Nc6 {[%emt 0:00:12]} 6. Qf2 {[%emt 0:00:09]} Bb4 {[%emt 0:06:40]} 7. Bd2 {[%emt 0:07:20]} Nge7 {[%emt 0:08:25]} 8. O-O-O {[%emt 0:12:02]} d6 {[%emt 0:09:14]} 9. Bd3 {[%emt 0:20:23]} b5 {[%emt 0:02:04]} 10. Nf3 {[%emt 0:10:08]} Bb7 {[%emt 0:00:37]} 11. Ne2 {[%emt 0:03:13]} Bxd2+ {[%emt 0:00:53]} 12. Rxd2 {[%emt 0:02:12]} Nb4 {[%emt 0:00:15]} 13. Kb1 {[%emt 0:10:44]} Nxd3 {[%emt 0:01:44]} 14. cxd3 {[%emt 0:00:21]} O-O {[%emt 0:00:28]} 15. Rc1 {[%emt 0:01:28]} Nc6 {[%emt 0:14:10]} 16. Ned4 {[%emt 0:06:19]} Nxd4 {[%emt 0:05:39]} 17. Qxd4 {[%emt 0:01:40]} Re8 {[%emt 0:01:13]} 18. Qe3 {[%emt 0:02:31]} e5 {[%emt 0:03:17]} 19. f5 {[%emt 0:02:02]} d5 {[%emt 0:03:15]} 20. g4 {[%emt 0:02:39]} f6 {[%emt 0:01:26]} 21. h4 {[%emt 0:01:13]} Rc8 {[%emt 0:02:16]} 22. Rg1 {[%emt 0:01:13]} Rc6 {[%emt 0:13:07]} 23. g5 {[%emt 0:04:55]} Qb6 {[%emt 0:00:20]} 24. Qe2 {[%emt 0:02:29]} dxe4 {[%emt 0:01:08]} 25. dxe4 {[%emt 0:02:02]} Rc4 {[%emt 0:00:31]} 26. Rg4 {[%emt 0:01:05]} Rec8 {[%emt 0:05:39]} 27. Qd1 {[%emt 0:03:01]} Qc7 {[%emt 0:01:14]} 28. Rg1 {[%emt 0:00:35]} Bxe4+ {[%emt 0:00:07]} 0-1

[Event "XIII Mediterranean Championship 2023"]
[Site "Castell-Platja d Aro"]
[Date "2023.11.05"]
[Round "3.24"]
[White "Pla Almenar, Nel"]
[Black "Vinolas Anglada, Laura"]
[Result "1/2-1/2"]
[ECO "C22"]
[WhiteElo "2070"]
[BlackElo "1884"]
[Annotator "NA"]
[PlyCount "100"]
[EventDate "2023.10.26"]
[EventType "swiss"]
[EventCountry "ESP"]
[SourceTitle "playchess.com"]
[Source "ChessBase"]
[SourceQuality "1"]
[TimeControl "5400+30"]

1. e4 {[%emt 0:00:03]} e5 {[%emt 0:01:00]} 2. d4 {[%emt 0:00:08]} exd4 {[%emt 0:00:15]} 3. Qxd4 {[%emt 0:00:08]} Nc6 {[%emt 0:01:02]} 4. Qe3 {[%emt 0:00:06]} Nf6 {[%emt 0:00:20]} 5. Bd2 {[%emt 0:00:05]} Be7 {[%emt 0:00:35]} 6. c4 {[%emt 0:00:06]} Ng4 {[%emt 0:11:45]} 7. Qe2 {[%emt 0:05:42]} d6 {[%emt 0:10:58]} 8. h3 {[%emt 0:13:50]} Nge5 {[%emt 0:01:20]} 9. Bc3 {[%emt 0:01:02]} O-O {[%emt 0:06:40]} 10. Nd2 {[%emt 0:00:48]} f5 {[%emt 0:03:20]} 11. O-O-O {[%emt 0:13:18]} Kh8 {[%emt 0:06:28]} 12. f4 {[%emt 0:01:38]} Ng6 {[%emt 0:02:59]} 13. g3 {[%emt 0:01:09]} Bf6 {[%emt 0:01:06]} 14. e5 {[%emt 0:14:12]} dxe5 {[%emt 0:02:00]} 15. fxe5 {[%emt 0:00:36]} Ngxe5 {[%emt 0:08:55]} 16. Ne4 {[%emt 0:00:41]} Qe7 {[%emt 0:01:50]} 17. Nxf6 {[%emt 0:00:24]} gxf6 {[%emt 0:02:37]} 18. Nf3 {[%emt 0:15:46]} Nxf3 {[%emt 0:01:47]} 19. Qxf3 {[%emt 0:00:07]} Qe4 {[%emt 0:00:36]} 20. Qxe4 {[%emt 0:04:49]} fxe4 {[%emt 0:00:06]} 21. Bg2 {[%emt 0:00:05]} Be6 {[%emt 0:06:01]} 22. b3 {[%emt 0:05:34]} Kg8 {[%emt 0:05:13]} 23. Bxe4 {[%emt 0:00:09]} f5 {[%emt 0:00:45]} 24. Bxc6 {[%emt 0:05:13]} bxc6 {[%emt 0:00:15]} 25. Rhe1 {[%emt 0:00:01]} Kf7 {[%emt 0:02:39]} 26. Re5 {[%emt 0:01:11]} Rad8 {[%emt 0:04:51]} 27. Rf1 {[%emt 0:03:33]} Rd3 {[%emt 0:00:49]} 28. Bb4 {[%emt 0:01:40]} Rb8 {[%emt 0:01:26]} 29. Bc5 {[%emt 0:01:58]} Rxg3 {[%emt 0:00:42]} 30. Rfe1 {[%emt 0:01:20]} Re8 {[%emt 0:00:45]} 31. Bxa7 {[%emt 0:01:41]} Rxh3 {[%emt 0:00:22]} 32. Bd4 {[%emt 0:00:34]} h5 {[%emt 0:02:11]} 33. Rg1 {[%emt 0:00:33]} Rh4 {[%emt 0:01:08]} 34. Bc3 {[%emt 0:03:11]} Rg4 {[%emt 0:00:16]} 35. Rd1 {[%emt 0:00:28]} h4 {[%emt 0:00:27]} 36. Rc5 {[%emt 0:00:53]} h3 {[%emt 0:01:05]} 37. Be5 {[%emt 0:02:17]} Rg2 {[%emt 0:00:58]} 38. Rh1 {[%emt 0:00:59]} f4 {[%emt 0:00:50]} 39. Bxf4 {[%emt 0:00:30]} Rxa2 {[%emt 0:02:19]} 40. Rh2 {[%emt 0:00:39]} Rxh2 {[%emt 0:00:55]} 41. Bxh2 {[%emt 0:00:01]} Bd7 {[%emt 0:00:37]} 42. Re5 {[%emt 0:00:45]} Rxe5 {[%emt 0:02:58]} 43. Bxe5 {[%emt 0:00:05]} Ke6 {[%emt 0:00:11]} 44. Bxc7 {[%emt 0:00:40]} Kf5 {[%emt 0:00:09]} 45. Kd2 {[%emt 0:00:40]} Ke4 {[%emt 0:00:17]} 46. Kc3 {[%emt 0:00:24]} Kf3 {[%emt 0:00:25]} 47. Kd4 {[%emt 0:00:20]} Bf5 {[%emt 0:00:32]} 48. b4 {[%emt 0:00:17]} Be4 {[%emt 0:00:37]} 49. b5 {[%emt 0:00:07]} cxb5 {[%emt 0:00:28]} 50. cxb5 {[%emt 0:00:22]} Bb7 {[%emt 0:00:09]} 1/2-1/2

[Event "XIII Mediterranean Championship 2023"]
[Site "Castell-Platja d Aro"]
[Date "2023.11.05"]
[Round "3.25"]
[White "Moran Cabezas, Eric"]
[Black "Vinals Rioja, Jaume"]
[Result "1/2-1/2"]
[ECO "B12"]
[WhiteElo "1736"]
[BlackElo "1838"]
[Annotator "NA"]
[PlyCount "82"]
[EventDate "2023.10.26"]
[EventType "swiss"]
[EventCountry "ESP"]
[SourceTitle "playchess.com"]
[Source "ChessBase"]
[SourceQuality "1"]
[TimeControl "5400+30"]

1. e4 {[%emt 0:01:06]} c6 {[%emt 0:00:12]} 2. d4 {[%emt 0:00:08]} d5 {[%emt 0:00:10]} 3. e5 {[%emt 0:00:18]} Bf5 {[%emt 0:00:12]} 4. g4 {[%emt 0:00:04]} Bg6 {[%emt 0:00:10]} 5. h4 {[%emt 0:00:27]} h6 {[%emt 0:00:12]} 6. Nh3 {[%emt 0:01:46]} e6 {[%emt 0:01:34]} 7. Nf4 {[%emt 0:00:57]} Bh7 {[%emt 0:00:47]} 8. Bd3 {[%emt 0:03:03]} Bxd3 {[%emt 0:00:32]} 9. Qxd3 {[%emt 0:00:21]} Qb6 {[%emt 0:01:24]} 10. Nd2 {[%emt 0:04:02]} c5 {[%emt 0:00:36]} 11. c3 {[%emt 0:06:10]} Nc6 {[%emt 0:01:25]} 12. Nf3 {[%emt 0:00:41]} cxd4 {[%emt 0:01:41]} 13. cxd4 {[%emt 0:02:10]} Nb4 {[%emt 0:03:45]} 14. Qb3 {[%emt 0:02:51]} Ne7 {[%emt 0:09:14]} 15. a3 {[%emt 0:06:47]} Na6 {[%emt 0:01:11]} 16. Qxb6 {[%emt 0:00:31]} axb6 {[%emt 0:00:02]} 17. Bd2 {[%emt 0:02:51]} Nc6 {[%emt 0:00:22]} 18. Ke2 {[%emt 0:04:27]} Be7 {[%emt 0:02:09]} 19. Kd3 {[%emt 0:02:24]} Kd7 {[%emt 0:01:16]} 20. Ne2 {[%emt 0:01:26]} Nc7 {[%emt 0:03:30]} 21. Rag1 {[%emt 0:05:20]} g6 {[%emt 0:02:12]} 22. Ne1 {[%emt 0:06:03]} h5 {[%emt 0:02:22]} 23. g5 {[%emt 0:06:18]} Na5 {[%emt 0:00:52]} 24. Nc2 {[%emt 0:04:44]} Nc4 {[%emt 0:00:27]} 25. Bc3 {[%emt 0:00:19]} Nb5 {[%emt 0:01:04]} 26. Rb1 {[%emt 0:00:34]} Rhc8 {[%emt 0:00:54]} 27. Bb4 {[%emt 0:00:54]} Rc7 {[%emt 0:02:09]} 28. Nc3 {[%emt 0:03:44]} Nxc3 {[%emt 0:05:06]} 29. bxc3 {[%emt 0:00:53]} Bxb4 {[%emt 0:01:14]} 30. axb4 {[%emt 0:00:08]} Rcc8 {[%emt 0:01:30]} 31. Ra1 {[%emt 0:09:38]} Nb2+ {[%emt 0:02:08]} 32. Kd2 {[%emt 0:00:13]} Na4 {[%emt 0:00:30]} 33. Ra3 {[%emt 0:00:15]} b5 {[%emt 0:02:08]} 34. Rh3 {[%emt 0:02:59]} Ra6 {[%emt 0:00:36]} 35. Rh1 {[%emt 0:01:16]} Rac6 {[%emt 0:02:25]} 36. Rh3 {[%emt 0:22:42]} Ke7 {[%emt 0:05:51]} 37. Rf3 {[%emt 0:00:30]} Ra6 {[%emt 0:00:20]} 38. Rh3 {[%emt 0:00:00]} Rca8 {[%emt 0:00:58]} 39. Rh1 {[%emt 0:00:00]} Kd7 {[%emt 0:01:18]} 40. Rha1 {[%emt 0:01:30]} Ke7 {[%emt 0:00:28]} 41. Rh1 {[%emt 0:00:00]} Kd7 {[%emt 0:46:04]} 1/2-1/2

[Event "XIII Mediterranean Championship 2023"]
[Site "Castell-Platja d Aro"]
[Date "2023.11.05"]
[Round "3.26"]
[White "Mateu Guiu, Esteve"]
[Black "Teixidor Banus, Josep Maria"]
[Result "1-0"]
[ECO "A41"]
[WhiteElo "2075"]
[BlackElo "1669"]
[Annotator "NA"]
[PlyCount "75"]
[EventDate "2023.10.26"]
[EventType "swiss"]
[EventCountry "ESP"]
[SourceTitle "playchess.com"]
[Source "ChessBase"]
[SourceQuality "1"]
[TimeControl "5400+30"]

1. d4 {[%emt 1:31:00]} g6 {[%emt 1:31:00]} 2. c4 {[%emt 0:00:30]} d6 {[%emt 0:00:30]} 3. Nf3 {[%emt 0:00:30]} Bg7 {[%emt 0:00:30]} 4. Nc3 {[%emt 0:00:30]} e6 {[%emt 0:00:30]} 5. g3 {[%emt 0:00:30]} b6 {[%emt 0:00:30]} 6. Bg2 {[%emt 0:00:30]} Bb7 {[%emt 0:00:30]} 7. O-O {[%emt 0:00:30]} Ne7 {[%emt 0:00:30]} 8. e4 {[%emt 0:00:30]} Nd7 {[%emt 0:00:30]} 9. Qe2 {[%emt 0:00:30]} O-O {[%emt 0:00:30]} 10. Rd1 {[%emt 0:00:30]} a6 {[%emt 0:00:30]} 11. Bf4 {[%emt 0:00:30]} h6 {[%emt 0:00:30]} 12. h4 {[%emt 0:00:30]} Qc8 {[%emt 0:00:30]} 13. e5 {[%emt 0:00:30]} d5 {[%emt 0:00:30]} 14. b3 {[%emt 0:00:30]} c6 {[%emt 0:00:30]} 15. Rac1 {[%emt 0:00:30]} Qd8 {[%emt 0:00:30]} 16. Qd2 {[%emt 0:00:30]} Kh7 {[%emt 0:00:30]} 17. Nh2 {[%emt 0:00:30]} Nf5 {[%emt 0:00:30]} 18. Ng4 {[%emt 0:00:30]} Qe7 {[%emt 0:00:30]} 19. Ne3 {[%emt 0:00:30]} Rac8 {[%emt 0:00:30]} 20. Nxf5 {[%emt 0:00:30]} gxf5 {[%emt 0:00:30]} 21. Qe2 {[%emt 0:00:30]} f6 {[%emt 0:00:30]} 22. exf6 {[%emt 0:00:30]} Qxf6 {[%emt 0:00:30]} 23. Qd2 {[%emt 0:00:30]} Rg8 {[%emt 0:00:30]} 24. Ne2 {[%emt 0:00:30]} Qg6 {[%emt 0:00:30]} 25. Be3 {[%emt 0:00:30]} Rce8 {[%emt 0:00:30]} 26. Nf4 {[%emt 0:00:30]} Qf7 {[%emt 0:00:30]} 27. Bf3 {[%emt 0:00:30]} Nf6 {[%emt 0:00:30]} 28. Qb4 {[%emt 0:00:30]} Bf8 {[%emt 0:00:30]} 29. Qxb6 {[%emt 0:00:30]} Ng4 {[%emt 0:00:30]} 30. Re1 {[%emt 0:00:30]} Bd6 {[%emt 0:00:30]} 31. Bd2 {[%emt 0:00:30]} Bxf4 {[%emt 0:00:30]} 32. Bxf4 {[%emt 0:00:30]} Nf6 {[%emt 0:00:30]} 33. cxd5 {[%emt 0:00:30]} exd5 {[%emt 0:00:30]} 34. Be2 {[%emt 0:00:30]} Ne4 {[%emt 0:00:30]} 35. Bxa6 {[%emt 0:00:30]} Bxa6 {[%emt 0:00:30]} 36. Qxa6 {[%emt 0:00:30]} Ra8 {[%emt 0:00:30]} 37. Qxc6 {[%emt 0:00:30]} Rxa2 {[%emt 0:00:30]} 38. Qxh6# {[%emt 0:00:30]} 1-0

[Event "XIII Mediterranean Championship 2023"]
[Site "Castell-Platja d Aro"]
[Date "2023.11.05"]
[Round "3.27"]
[White "Andreu Lopez, Santiago"]
[Black "Giro Castellet, Esteve"]
[Result "1-0"]
[ECO "A17"]
[WhiteElo "1834"]
[BlackElo "1633"]
[Annotator "NA"]
[PlyCount "77"]
[EventDate "2023.10.26"]
[EventType "swiss"]
[EventCountry "ESP"]
[SourceTitle "playchess.com"]
[Source "ChessBase"]
[SourceQuality "1"]
[TimeControl "5400+30"]

1. Nf3 {[%emt 0:00:03]} d5 {[%emt 0:00:09]} 2. g3 {[%emt 0:00:05]} Nd7 {[%emt 0:01:33]} 3. Bg2 {[%emt 0:00:10]} c6 {[%emt 0:01:25]} 4. O-O {[%emt 0:02:23]} Ngf6 {[%emt 0:00:42]} 5. d3 {[%emt 0:02:00]} e6 {[%emt 0:03:36]} 6. c4 {[%emt 0:00:48]} Be7 {[%emt 0:00:54]} 7. cxd5 {[%emt 0:00:39]} exd5 {[%emt 0:00:41]} 8. Nc3 {[%emt 0:00:45]} O-O {[%emt 0:01:34]} 9. e4 {[%emt 0:02:01]} dxe4 {[%emt 0:08:15]} 10. dxe4 {[%emt 0:00:42]} Nc5 {[%emt 0:01:38]} 11. Qc2 {[%emt 0:00:43]} Qd3 {[%emt 0:04:20]} 12. Ne1 {[%emt 0:02:26]} Qxc2 {[%emt 0:02:19]} 13. Nxc2 {[%emt 0:00:07]} Nd3 {[%emt 0:00:37]} 14. Ne3 {[%emt 0:19:19]} Be6 {[%emt 0:04:06]} 15. b3 {[%emt 0:07:31]} Nxc1 {[%emt 0:06:59]} 16. Raxc1 {[%emt 0:00:22]} Rad8 {[%emt 0:01:27]} 17. Rfd1 {[%emt 0:02:00]} Ng4 {[%emt 0:04:56]} 18. Nxg4 {[%emt 0:03:41]} Bxg4 {[%emt 0:00:07]} 19. f3 {[%emt 0:00:43]} Be6 {[%emt 0:54:42]} 20. Ne2 {[%emt 0:01:11]} Ba3 {[%emt 0:00:00]} 21. Rb1 {[%emt 0:00:39]} Bc5+ {[%emt 0:00:00]} 22. Kf1 {[%emt 0:00:12]} Be3 {[%emt 0:00:00]} 23. Nf4 {[%emt 0:01:51]} Bc8 {[%emt 0:00:00]} 24. Bh3 {[%emt 0:03:36]} Bxh3+ {[%emt 0:00:00]} 25. Nxh3 {[%emt 0:00:06]} c5 {[%emt 0:00:00]} 26. Ke2 {[%emt 0:02:06]} Bd4 {[%emt 0:00:00]} 27. Nf4 {[%emt 0:01:08]} Rfe8 {[%emt 0:00:00]} 28. Kf1 {[%emt 0:13:16]} Be3 {[%emt 0:00:00]} 29. Ng2 {[%emt 0:09:24]} Bd4 {[%emt 0:00:00]} 30. Rd3 {[%emt 0:00:18]} Bf6 {[%emt 0:00:00]} 31. Rbd1 {[%emt 0:00:27]} Rd4 {[%emt 0:00:00]} 32. Ne3 {[%emt 0:01:26]} Rxd3 {[%emt 0:00:00]} 33. Rxd3 {[%emt 0:00:07]} Rd8 {[%emt 0:00:00]} 34. Ke2 {[%emt 0:00:36]} Rxd3 {[%emt 0:00:00]} 35. Kxd3 {[%emt 0:00:08]} b5 {[%emt 0:00:00]} 36. Nd5 {[%emt 0:00:58]} Bd8 {[%emt 0:00:00]} 37. Nc3 {[%emt 0:03:44]} a6 {[%emt 0:00:00]} 38. a4 {[%emt 0:00:16]} Bf6 {[%emt 0:00:00]} 39. axb5 {[%emt 0:22:03]} 1-0

[Event "XIII Mediterranean Championship 2023"]
[Site "Castell-Platja d Aro"]
[Date "2023.11.05"]
[Round "3.28"]
[White "Vidal Traves, Marti"]
[Black "Diaz Comas, Jordi"]
[Result "0-1"]
[ECO "A58"]
[WhiteElo "1631"]
[BlackElo "1837"]
[Annotator "NA"]
[PlyCount "94"]
[EventDate "2023.10.26"]
[EventType "swiss"]
[EventCountry "ESP"]
[SourceTitle "playchess.com"]
[Source "ChessBase"]
[SourceQuality "1"]
[TimeControl "5400+30"]

1. d4 {[%emt 1:31:00]} Nf6 {[%emt 1:31:00]} 2. c4 {[%emt 0:00:30]} c5 {[%emt 0:00:30]} 3. d5 {[%emt 0:00:30]} b5 {[%emt 0:00:30]} 4. cxb5 {[%emt 0:00:30]} a6 {[%emt 0:00:30]} 5. bxa6 {[%emt 0:00:30]} g6 {[%emt 0:00:30]} 6. g3 {[%emt 0:00:30]} Bg7 {[%emt 0:00:30]} 7. Bg2 {[%emt 0:00:30]} d6 {[%emt 0:00:30]} 8. Nc3 {[%emt 0:00:30]} Bxa6 {[%emt 0:00:30]} 9. Nf3 {[%emt 0:00:30]} Nbd7 {[%emt 0:00:30]} 10. O-O {[%emt 0:00:30]} O-O {[%emt 0:00:30]} 11. Qc2 {[%emt 0:00:30]} Qc7 {[%emt 0:00:30]} 12. Rd1 {[%emt 0:00:30]} Rfb8 {[%emt 0:00:30]} 13. Rb1 {[%emt 0:00:30]} Ng4 {[%emt 0:00:30]} 14. h3 {[%emt 0:00:30]} Nge5 {[%emt 0:00:30]} 15. Nxe5 {[%emt 0:00:30]} Nxe5 {[%emt 0:00:30]} 16. b3 {[%emt 0:00:30]} Ra7 {[%emt 0:00:30]} 17. Kh2 {[%emt 0:00:30]} Rab7 {[%emt 0:00:30]} 18. a3 {[%emt 0:00:30]} h6 {[%emt 0:00:30]} 19. f4 Nd7 {[%emt 0:00:30]} 20. e4 {[%emt 0:01:00]} Qa5 {[%emt 0:00:30]} 21. Na4 {[%emt 0:00:30]} Bb5 {[%emt 0:00:30]} 22. Bd2 {[%emt 0:00:30]} Qa7 {[%emt 0:00:30]} 23. Nc3 {[%emt 0:00:30]} Ba6 {[%emt 0:00:30]} 24. Na2 {[%emt 0:00:30]} Be2 {[%emt 0:00:30]} 25. Re1 {[%emt 0:00:30]} Qa6 {[%emt 0:00:30]} 26. Nc1 {[%emt 0:00:30]} Bb5 {[%emt 0:00:30]} 27. Qa2 {[%emt 0:00:30]} Bc4 {[%emt 0:00:30]} 28. Re3 {[%emt 0:00:30]} Bd4 {[%emt 0:00:30]} 29. Rf3 {[%emt 0:00:30]} Nf6 {[%emt 0:00:30]} 30. Bc3 {[%emt 0:00:30]} Nxe4 {[%emt 0:00:30]} 31. Bxd4 {[%emt 0:00:30]} cxd4 {[%emt 0:00:30]} 32. Qc2 {[%emt 0:00:30]} Bxd5 {[%emt 0:00:30]} 33. Rd3 {[%emt 0:00:30]} Qa7 {[%emt 0:00:30]} 34. Qb2 {[%emt 0:00:30]} e5 {[%emt 0:00:30]} 35. b4 {[%emt 0:00:30]} Nc3 {[%emt 0:00:30]} 36. Bxd5 {[%emt 0:00:30]} Nxd5 {[%emt 0:00:30]} 37. Ne2 {[%emt 0:00:30]} Ne3 {[%emt 0:00:30]} 38. Qb3 {[%emt 0:00:30]} Qa6 {[%emt 0:00:30]} 39. fxe5 {[%emt 0:00:30]} dxe5 {[%emt 0:00:30]} 40. g4 {[%emt 0:00:30]} Qc6 {[%emt 0:00:30]} 41. Rxe3 {[%emt 0:00:30]} dxe3 {[%emt 0:00:30]} 42. Qxe3 {[%emt 0:00:30]} Kh7 43. Qxe5 {[%emt 0:00:30]} Re8 44. Qb2 Rbe7 45. Ng1 Qc4 46. Qb3 Qf4+ 47. Qg3 Re2+ 0-1

[Event "XIII Mediterranean Championship 2023"]
[Site "Castell-Platja d Aro"]
[Date "2023.11.05"]
[Round "3.29"]
[White "Vidal Palou, Jordi"]
[Black "Garcia Rodriguez, Laia"]
[Result "0-1"]
[ECO "D00"]
[WhiteElo "1620"]
[BlackElo "1811"]
[Annotator "NA"]
[PlyCount "84"]
[EventDate "2023.10.26"]
[EventType "swiss"]
[EventCountry "ESP"]
[SourceTitle "playchess.com"]
[Source "ChessBase"]
[SourceQuality "1"]
[TimeControl "5400+30"]

1. d4 {[%emt 1:31:00]} d5 {[%emt 1:31:00]} 2. Bf4 {[%emt 0:00:30]} Nf6 {[%emt 0:00:30]} 3. e3 {[%emt 0:00:30]} c5 {[%emt 0:00:30]} 4. c3 {[%emt 0:00:30]} Nc6 {[%emt 0:00:30]} 5. Bd3 {[%emt 0:00:30]} Qb6 {[%emt 0:00:30]} 6. Qc1 {[%emt 0:00:30]} cxd4 {[%emt 0:00:30]} 7. exd4 {[%emt 0:00:30]} Bg4 {[%emt 0:00:30]} 8. f3 {[%emt 0:00:30]} Bh5 {[%emt 0:00:30]} 9. Na3 {[%emt 0:00:30]} a6 {[%emt 0:00:30]} 10. Nc2 {[%emt 0:00:30]} e6 {[%emt 0:00:30]} 11. Ne2 {[%emt 0:00:30]} Bg6 {[%emt 0:00:30]} 12. Bxg6 {[%emt 0:00:30]} hxg6 {[%emt 0:00:30]} 13. Rb1 {[%emt 0:00:30]} Be7 {[%emt 0:00:30]} 14. Qd2 {[%emt 0:00:30]} Rc8 {[%emt 0:00:30]} 15. Be3 {[%emt 0:00:30]} Qc7 {[%emt 0:00:30]} 16. Bf4 {[%emt 0:00:30]} Qd7 {[%emt 0:00:30]} 17. Ne3 {[%emt 0:00:30]} Nh5 {[%emt 0:00:30]} 18. Ng4 {[%emt 0:00:30]} Nxf4 {[%emt 0:00:30]} 19. Qxf4 {[%emt 0:00:30]} b5 {[%emt 0:00:30]} 20. a3 {[%emt 0:00:30]} Bd6 {[%emt 0:00:30]} 21. Qe3 {[%emt 0:00:30]} a5 {[%emt 0:00:30]} 22. f4 {[%emt 0:00:30]} Qe7 {[%emt 0:00:30]} 23. Ne5 {[%emt 0:00:30]} b4 {[%emt 0:00:30]} 24. cxb4 {[%emt 0:00:30]} axb4 {[%emt 0:00:30]} 25. Rc1 {[%emt 0:00:30]} Bxe5 {[%emt 0:00:30]} 26. fxe5 {[%emt 0:00:30]} O-O {[%emt 0:00:30]} 27. O-O {[%emt 0:00:30]} bxa3 {[%emt 0:00:30]} 28. bxa3 {[%emt 0:00:30]} Na5 {[%emt 0:00:30]} 29. Rf4 {[%emt 0:00:30]} Rxc1+ {[%emt 0:00:30]} 30. Qxc1 {[%emt 0:00:30]} Nc4 {[%emt 0:00:30]} 31. Rf3 {[%emt 0:00:30]} Rb8 {[%emt 0:00:30]} 32. Nf4 {[%emt 0:00:30]} Rb2 {[%emt 0:00:30]} 33. Nh3 {[%emt 0:00:30]} Qb7 {[%emt 0:00:30]} 34. Qf4 {[%emt 0:00:30]} Nd2 {[%emt 0:00:30]} 35. Qh4 {[%emt 0:00:30]} Nxf3+ {[%emt 0:00:30]} 36. gxf3 {[%emt 0:00:30]} Qc7 {[%emt 0:00:30]} 37. Nf2 {[%emt 0:00:30]} Qc1+ {[%emt 0:00:30]} 38. Kg2 {[%emt 0:00:30]} g5 {[%emt 0:00:30]} 39. Qg3 {[%emt 0:00:30]} Rb1 {[%emt 0:00:30]} 40. Kh3 {[%emt 0:00:30]} Qxa3 {[%emt 0:00:30]} 41. Ng4 {[%emt 0:00:30]} Qd3 {[%emt 0:00:30]} 42. Qg2 {[%emt 0:00:30]} Qh7+ {[%emt 0:00:30]} 0-1